Cogmind - Beta 15 @@@ ROGUE MODE // 2025.07.23 @ 20:09:08 Player: AshCrow Result: Destroyed by OS-SFC(j) with Overtuned Pulse Rifle Performance ------------- Evolutions (0) 0 Regions Visited (3) 600 Robots Destroyed (9) 45 Value Destroyed (432) 432 Prototype IDs (8) 160 Alien Tech Used (0) 0 Bonus (800) 800 TOTAL SCORE: 2037 Bonus ------- Registered with UFD 300 Met Optimus in HQ 500 Cogmind --------- Core Integrity 0/250 Matter 240/300 Energy 94/140 System Corruption 1% Temperature Warning (341) Movement Walking (100) Location -9/Scraptown Parts ------- > --- POWER (1) -------- Light Deuterium Engine > --- PROPULSION (2) --- Overtuned Titanium Leg Overtuned Titanium Leg > --- UTILITY (2) ------ Small Storage Unit > --- WEAPON (2) ------- Barrage Gun > --- INVENTORY (8) ---- Ion Engine Overtuned Titanium Leg Overtuned Titanium Leg Shield Generator Makeshift Hacking Suite Overtuned Barrage Gun Rocket Launcher Botcube Peak State ------------ > --- POWER ------------ Improved Deuterium Engine > --- PROPULSION ------- Overtuned Titanium Leg Overtuned Titanium Leg > --- UTILITY ---------- Small Storage Unit Makeshift Light Armor Plating > --- WEAPON ----------- Barrage Gun Gauss Rifle > --- INVENTORY -------- Ion Engine Aluminum Leg Overtuned Titanium Leg Medium Armor Plating Shield Generator Makeshift Hacking Suite Rocket Launcher Botcube [Rating: 24] Favorites ----------- Power Ion Engine Engine Ion Engine Propulsion Wheel Leg Overtuned Titanium Leg Wheel Wheel Utility Small Storage Unit Storage Small Storage Unit Protection Medium Armor Plating Weapon Assault Rifle Energy Gun Medium Laser Ballistic Gun Assault Rifle Build | -11 -10 -10 -9 ------- Run | Yrd Mat Sub Scr Slots Evolved . | . . . . Power . | . . . . Propulsion . | . . . . Utility . | . . . . Weapon . | . . . . Parts Attached 21 | 7 . . 14 Power 3 | 1 . . 2 Engine 3 | 1 . . 2 Core . | . . . . Reactor . | . . . . Propulsion 9 | 2 . . 7 Treads . | . . . . Leg 7 | . . . 7 Wheel 2 | 2 . . . Hover . | . . . . Flight . | . . . . Utility 3 | 1 . . 2 Device . | . . . . Storage 1 | 1 . . . Processor . | . . . . Hackware . | . . . . Protection 2 | . . . 2 Artifact . | . . . . Weapon 6 | 3 . . 3 Energy Gun 1 | 1 . . . Energy Cannon . | . . . . Ballistic Gun 5 | 2 . . 3 Ballistic Cannon . | . . . . Launcher . | . . . . Special Weapon . | . . . . Impact Weapon . | . . . . Slashing Weapon . | . . . . Piercing Weapon . | . . . . Special Melee Weapon . | . . . . Unidentified Prototypes . | . . . . Parts Lost 6 | . . . 6 Power 2 | . . . 2 Propulsion 1 | . . . 1 Utility 1 | . . . 1 Weapon 2 | . . . 2 Highest Loss Streak 4 | . . . 4 To Critical Strikes . | . . . . Average Backups 5 | 1 3 4 5 Power 1 | . 1 2 1 Propulsion 1 | 1 2 2 1 Utility . | . . . . Weapon . | . . . 1 Tool/Special . | . . . . Unused Backups 8 | . . . 8 Power 2 | . . . 2 Propulsion 1 | . . . 1 Utility 2 | . . . 2 Weapon 3 | . . . 3 Tool/Special . | . . . . Average Slot Usage (%) 96 | . 85 85 98 Engine 13 | . 14 14 13 Leg 1 | . . . 1 Wheel 26 | . 28 28 26 Storage 14 | . 14 14 14 Protection 11 | . . . 12 Ballistic Gun 27 | . 28 28 27 Peak Build Rating 24 | 6 6 6 24 Average Rating 8 | 4 6 6 8 On Entrance 4 | . 6 6 6 Naked Turns . | . . . . Heaviest Build 26 | 14 14 14 26 Greatest Support 38 | 20 20 20 38 Greatest Overweight (x) 1 | . . . 1 Average Overweight (x) . | . . . . Largest Inventory Capacity 8 | 8 8 8 8 Average Capacity 7 | 6 8 8 8 Most Carried 8 | 3 4 4 8 Average Carried 6 | 1 3 4 6 Final Capacity 8 | 8 8 8 8 Final Carried 8 | 3 4 4 8 Class Distribution -------------------- 96% | Mutant 3% | Scavenger-Mutant Dominant Class ---------------- Mutant | -10/Materials Mutant | -10/Subcaves Mutant | -9/Scraptown Resources | -11 -10 -10 -9 ----------- Run | Yrd Mat Sub Scr Matter Collected 586 | 221 43 . 322 Remotely . | . . . . Salvage Created 597 | . . . 597 Parts 23 | . . . 23 Haulers Intercepted . | . . . . Recyclers Shooed . | . . . . Parts Field Recycled . | . . . . Retrieved Matter . | . . . . Parts Self-Destructed 3 | . . 3 . Prevented . | . . . . Kills | -11 -10 -10 -9 ------- Run | Yrd Mat Sub Scr Combat Hostiles Destroyed 9 | . . . 9 Guns 9 | . . . 9 Classes Destroyed 2 | . . . 2 Guru 1 | . . . 1 Scrapper 8 | . . . 8 Best Kill Streak 5 | . . . 5 Combat Bots Only 5 | . . . 5 Max Kills in Single Turn 2 | . . . 2 Gunslinging 1 | . . . 1 Exploded . | . . . . Melee . | . . . . Uniques/NPCs Destroyed . | . . . . Combat | -11 -10 -10 -9 -------- Run | Yrd Mat Sub Scr Hostile Shots Fired 92 | . . . 92 Missed 24 | . . . 24 Hits 68 | . . . 68 Projectile 68 | . . . 68 Critical Strikes 6 | . . . 6 Damage Taken 1322 | . . . 1322 Core 254 | . . . 254 Absorbed by Shields . | . . . . Regen/Repaired (Parts) 54 | . . . 54 Core Remaining (%) 100 | 100 . . . Volleys Fired 29 | . 2 . 27 Largest 2 | . 2 . 2 Hottest 56 | . 40 . 56 Shots Fired 55 | . 4 . 51 Gun 55 | . 4 . 51 Cannon . | . . . . Launcher . | . . . . Special . | . . . . Kinetic 55 | . 4 . 51 Thermal . | . . . . Explosive . | . . . . Electromagnetic . | . . . . Robot Hit Streak 9 | . 1 . 9 Robot Miss Streak 3 | . 1 . 3 Penetration Max . | . . . . Secondary Targets 3 | . . . 3 Max Gunslinging Chain 1 | . . . 1 Shots Hit Robots 34 | . 2 . 32 Core Hits 16 | . . . 16 Critical Kills 1 | . . . 1 Critical Parts Destroyed . | . . . . Critical Strikes 1 | . . . 1 Destroy 1 | . . . 1 Melee Attacks . | . . . . Impact . | . . . . Slashing . | . . . . Piercing . | . . . . Sneak Attacks . | . . . . Combat Hostiles . | . . . . Follow-up Attacks . | . . . . Damage Inflicted 633 | . 22 . 611 Guns 633 | . 22 . 611 Cannons . | . . . . Explosions . | . . . . Melee . | . . . . Ramming . | . . . . Kinetic 633 | . 22 . 611 Thermal . | . . . . Explosive . | . . . . Electromagnetic . | . . . . Impact . | . . . . Slashing . | . . . . Piercing . | . . . . Highest Corruption 1 | . . . 1 Average Corruption 1 | . . . 1 Corruption Purged . | . . . . Corruption Blocked . | . . . . Effects 1 | . . . 1 Matter Fused 1 | . . . 1 Overload Shots . | . . . . Overflow Damage . | . . . . Projectiles . | . . . . Explosions . | . . . . Melee . | . . . . Knockbacks . | . . . . Impact . | . . . . Kinetic . | . . . . Secondary . | . . . . Self-Inflicted Damage . | . . . . Shots . | . . . . Rammed . | . . . . Targets Rammed . | . . . . Kicked . | . . . . Crushed . | . . . . Highest Temperature 416 | . . . 416 Average Temperature 128 | . . . 128 Received Heat Transfer 870 | . . . 870 Effects 2 | . . . 2 Matter Decay 1 | . . . 1 Damage (minor) 1 | . . . 1 Siege Activations . | . . . . Martial Activations . | . . . . Shielding Activations . | . . . . Robots Disrupted . | . . . . Combat Hostiles . | . . . . Robots Corrupted . | . . . . Combat Hostiles . | . . . . Parts Fried 2 | . . . 2 Impact Corruptions . | . . . . Robots Melted . | . . . . Combat Hostiles . | . . . . Parts Melted 1 | . . . 1 Heat Transferred . | . . . . Parts Sabotaged . | . . . . Parts Stolen . | . . . . Parts Stripped . | . . . . Power Chain Reactions . | . . . . Alert | -11 -10 -10 -9 ------- Run | Yrd Mat Sub Scr Maximum Alert Level . | . . . . Low Security (%) 100 | 100 100 . . Level 1 . | . . . . Level 2 . | . . . . Level 3 . | . . . . Level 4 . | . . . . Level 5 . | . . . . High Security . | . . . . Max Security . | . . . . Peak Influence . | . . . . Initial . | . . . . Average . | . . . . Influence Increases . | . . . . Influence Decreases . | . . . . Squads Dispatched 1 | . 1 . . Investigation . | . . . . Extermination . | . . . . Reinforcement 1 | . 1 . . Assault . | . . . . Garrison . | . . . . Intercept . | . . . . Searches Triggered . | . . . . Construction Impeded . | . . . . Haulers Reinforced . | . . . . Active Scanning Responses . | . . . . Cargo Convoy Interrupts . | . . . . Stealth | -11 -10 -10 -9 --------- Run | Yrd Mat Sub Scr Distress Signals 1 | . 1 . . Communications Jammed . | . . . . Distress Signals . | . . . . Times Spotted 23 | . 4 . 19 Peak Tracking Total 5 | . 4 . 5 Tactical Retreats . | . . . . Traps | -11 -10 -10 -9 ------- Run | Yrd Mat Sub Scr Traps Triggered . | . . . . Indirectly . | . . . . Trap Hack Attempts . | . . . . Triggered . | . . . . Disarmed . | . . . . Reprogrammed . | . . . . Reused . | . . . . Traps Extracted . | . . . . Installed . | . . . . Triggered . | . . . . Machines | -11 -10 -10 -9 ---------- Run | Yrd Mat Sub Scr Machines Disabled . | . . . . Max in Single Turn . | . . . . Machines Repaired . | . . . . Machines Dismantled . | . . . . Machines Sabotaged . | . . . . Overloaded Fab Kills . | . . . . Hacking | -11 -10 -10 -9 --------- Run | Yrd Mat Sub Scr Machines Accessed 9 | . . . 9 Terminals . | . . . . Fabricators . | . . . . Repair Stations . | . . . . Recycling Units . | . . . . Scanalyzers . | . . . . Garrison Access . | . . . . Total Hacks 67 | . . . 67 Successful 67 | . . . 67 Failed . | . . . . Catastrophic . | . . . . Database Lockouts . | . . . . Manual . | . . . . Terminals . | . . . . Fabricators . | . . . . Repair Stations . | . . . . Recycling Units . | . . . . Scanalyzers . | . . . . Garrison Access . | . . . . Terminal Hacks 67 | . . . 67 Record 67 | . . . 67 Fabricator Hacks . | . . . . Repair Station Hacks . | . . . . Recycling Unit Hacks . | . . . . Scanalyzer . | . . . . Garrison Access Hacks . | . . . . Unauthorized Hacks . | . . . . Terminals . | . . . . Fabricators . | . . . . Repair Stations . | . . . . Recycling Units . | . . . . Scanalyzers . | . . . . Garrison Access . | . . . . Data Cores Recovered 1 | . 1 . . Used . | . . . . Hacking Detections . | . . . . Full Trace Events . | . . . . Feedback Events . | . . . . Feedback Blocked . | . . . . Robot Schematics Acquired . | . . . . Robots Built . | . . . . Authchips . | . . . . Time . | . . . . Total Robot Build Rating . | . . . . Part Schematics Acquired . | . . . . Parts Built . | . . . . Authchips . | . . . . Time . | . . . . Total Part Build Rating . | . . . . Parts Repaired . | . . . . Time . | . . . . Parts Recycled . | . . . . Recycled Matter . | . . . . Retrieved Matter . | . . . . Retrieved Components . | . . . . Parts Scanalyzed . | . . . . Part Schematics Acquired . | . . . . Parts Damaged . | . . . . Bothacking | -11 -10 -10 -9 ------------ Run | Yrd Mat Sub Scr Used RIF Installer . | . . . . Robots Hacked . | . . . . Non-combat . | . . . . Combat . | . . . . Robot Hacks Applied . | . . . . Relay Couplers Released . | . . . . Fabnet Peak Effective % . | . . . . Robots Rewired . | . . . . Allies Hacked . | . . . . Hacks Repelled . | . . . . Allies | -11 -10 -10 -9 -------- Run | Yrd Mat Sub Scr Total Allies . | . . . . Largest Group . | . . . . Highest-Rated Group . | . . . . Highest-Rated Ally . | . . . . Total Orders . | . . . . Ally Attacks . | . . . . Total Damage . | . . . . Kills . | . . . . Allies Corrupted . | . . . . Allies Melted 3 | . . . 3 Intel | -11 -10 -10 -9 ------- Run | Yrd Mat Sub Scr Active Infowar (turns) . | . . . . Robot Analysis Total . | . . . . Derelict Logs Recovered 1 | . . 1 . Drone Launches . | . . . . Drone Recoveries . | . . . . Exploration | -11 -10 -10 -9 ------------- Run | Yrd Mat Sub Scr Turns Passed 2753 | 54 73 277 2349 Spaces Moved 2213 | 51 67 41 2054 Core 1 | 1 . . . Treads . | . . . . Legs 54 | . . . 54 Wheels 2158 | 50 67 41 2000 Hover . | . . . . Flight . | . . . . Fastest Speed 50 | 50 80 80 80 Average Speed 92 | 79 80 80 93 Slowest Speed 190 | 80 80 80 190 Overloaded Moves . | . . . . Propulsion Burnouts . | . . . . Robots Hopped . | . . . . Potential Cave-ins . | . . . . Cave-ins Triggered . | . . . . Exploration Rate (%) 28 | 3 17 2 92 Regions Visited 3 Branch Regions 2 Pre-discovered Areas . | . . . . Known Exits Taken . | . . . . Unknown Exits Taken 3 | 1 1 1 . Scrap Searched 3 | . . . 3 Spaces Dug . | . . . . Terrain Destroyed . | . . . . Melee . | . . . . Projectile . | . . . . AOE . | . . . . Terrain Rammed . | . . . . Walls Destroyed . | . . . . Machines Disabled . | . . . . Actions | -11 -10 -10 -9 --------- Run | Yrd Mat Sub Scr Total 2855 | 60 82 284 2429 Wait 516 | . 13 244 259 Move 2210 | 50 66 40 2054 Hop . | . . . . Pick Up 10 | 3 1 . 6 Fast Attach 11 | 6 . . 5 Attach 1 | . . . 1 Detach . | . . . . Swap 11 | 1 . . 10 Drop 10 | . . . 10 Fire 29 | . 2 . 27 Melee . | . . . . Ram . | . . . . Kick . | . . . . Crush . | . . . . Escape Stasis . | . . . . Rewire 57 | . . . 57 Trap . | . . . . Miscellaneous . | . . . . Route ------- -11/Scrapyard -10/Materials (discovered 2 exits: [*Min] / [*Sub]) -10/Subcaves -9/Scraptown (discovered 2 exits: [*Fac x2]) History --------- Turn | Location | Event 18 | -11/Scrapyard | Discovered new exit (range 16) 55 | -11/Scrapyard | Entered Materials 56 | -10/Materials | Met a group of wandering Federalists 116 | -10/Materials | Discovered new exit (range 7) 126 | -10/Materials | Discovered new exit (range 5) 128 | -10/Materials | Entered Subcaves 128 | -10/Subcaves | Accompanied by 4 allies 129 | -10/Subcaves | Continued accompanying wandering Federalists (5) 303 | -10/Subcaves | Build established: Mutant 339 | -10/Subcaves | Wandering Federalist uncovered a shortcut to Scraptown 405 | -10/Subcaves | Entered Scraptown 773 | -9/Scraptown | Visited UFD Registry 787 | -9/Scraptown | Visited Awakened 845 | -9/Scraptown | Visited The Evicted 877 | -9/Scraptown | Visited CR-KLE's Repair Center 884 | -9/Scraptown | CR-KLE repaired 1 part 1152 | -9/Scraptown | Heard Great Nut preacher, LISTEN AND RECITE! 1194 | -9/Scraptown | Discovered new exit (range 5) 1370 | -9/Scraptown | Visited Cave Peace 1404 | -9/Scraptown | Visited Cyclists 1435 | -9/Scraptown | Registered with UFD as "Hammerplate" 1453 | -9/Scraptown | Entered Cyclist Reading Room 1537 | -9/Scraptown | Visited LU-1G1's Boring Crew 1749 | -9/Scraptown | Visited Botcube Research 1757 | -9/Scraptown | Found Botcube 1812 | -9/Scraptown | Visited Abandonware Association 1831 | -9/Scraptown | Learned abandonware demo "REPAIR.EXE" 1856 | -9/Scraptown | Visited Observation Area 1962 | -9/Scraptown | Discovered new exit (range 5) 2011 | -9/Scraptown | Visited Curators Association 2059 | -9/Scraptown | Visited Scrapoid Research Area 2104 | -9/Scraptown | Visited Infowarlord's Domain 2150 | -9/Scraptown | Visited Science Testing Area 2259 | -9/Scraptown | Visited Scrapoid Pod Storage 2315 | -9/Scraptown | Met Optimus 2315 | -9/Scraptown | Accepted into 0bPrime 2539 | -9/Scraptown | Civil war broke out across Scraptown 2611 | -9/Scraptown | Lost 3 allies 2726 | -9/Scraptown | Core integrity fell below 50% 2750 | -9/Scraptown | Core integrity fell below 20% 2754 | -9/Scraptown | Destroyed by OS-SFC(j) with Overtuned Pulse Rifle Last Messages --------------- M9-3MR(j) destroyed. Switching to secondary target: C9-2XY(j). C9-2XY(j) destroyed. Overheating: Mak. Light Armor Plating damaged (-13). Acquired 51 matter. Dropped Ovr. Titanium Leg. Overheating: Matter decay (-40). Acquired Lgt. Deuterium Engine. Critical hit (Burn: +50). Dropped Aluminum Leg. Penetrated by Bolt. Y1-81H(j): "0bPrime is tearing us apart, don't fall for it!" Mak. Light Armor Plating destroyed. Barrage Gun destroyed. Critical hit (Burn: +50). OS-SFC(j) heat short circuits Scrap Suit. QX-06B(j) heat damages core (-9). [Achievement: This Is Interesting...] Map ----- +----------------------------------------------------+ | | | | | | | | | ?????????????????????????????????????????????????? | | ?????????????????????????????????????????????????? | | ?????????????????????????????????????????????????? | | ?????????????????????????????????????????????????? | | ?????????????????????????????????????????????????? | | ?????????????????????????????????????????????????? | | ?????????????????????????????????????????????????? | | ?????????????????????????????????????????????????? | | ?????????????????????????????????????????????????? | | ?????????????????????????????????????????????????? | | ?????????????????????????????????????????????????? | | ?????????????????????????????????#####???????????? | | ?????????????????????????????????#"""#???????????? | | ??###################???####?????#" "#???????????? | | ?#"""##"""##""|##"""#??##!%##????# < #???????????? | | ?#"" ##"" ##""|##!!"####=![=###### ##??????????? | | ?#"" !!%[&= #??????????? | | ?# =[==% #??????????? | | ?####################### [*%###########??????????? | | ???????????????????????## !##????????????????????? | | ?????????????############h #??###?###????????????? | | ?????????????#"""""""""##@j#??#"###"#????????????? | | ???###########" "## #### "=" ####?????????? | | ???#"""""""""#" """"" "## #" """ "#?????????? | | ???# " " " #" "???" "## ##"" ""##?????????? | | ???# #" "???" "## ##!" "!#??????????? | | ???# "# #" #" "???" "##[%;#"" % ""##?????????? | | ???# "#X#" #" "???" "#=[!#" "#?????????? | | ???# "###" #" """"" "## =##"" ""##?????????? | | ???# """"" #" "##=!##!" "!#??????????? | | ???# # ""##%%##"" ""#??????????? | | ???# # ##[=#"= "#?????????? | | ???#### ########### ####!j%##*##########?????????? | | ####### ########### #####![#%!###############????? | | """"""" """"""[* "" "" !=%!*=="## """ "#????? | | %[%= %!!=% "## """"" ""#????? | | ![!=! !%=!==## """ "#????? | | =![= % %[%!=%## ""#????? | | = *!!!%!=%##! "#????? | | *%!!!%!!%= #????? | | """"""""""""""""" """ "= *%[!##= """ #????? | | """""""""""""""""""""""""%! [["## " """"" #????? | | ##### ################" = ="## """ """ #????? | | ##????????#"" "##############????? | | X"#????????#""! "#?????????????????? | | "" "" ##????????#""== * "###########???????? | +----------------------------------------------------+ Best States ------------- Heat Dissipation 25 Energy Generation 16 Energy Capacity 290 Matter Stores 300 Matter Capacity 300 Sight Range 16 Terrain Scan Density 10 Armor Coverage 225 Evasion (%) 55 Item Schematics ----------------- None Robot Schematics ------------------ None Fabricated ------------ Nothing Repaired ---------- Nothing Alien Tech Used ----------------- None Achievements -------------- This Is Interesting... Challenges ------------ None Game ------ Seed NodeRagnarokFlightbrick Manual? 0 Play Time 00:51:58 Cumulative 31.6 hours Start 2025.07.23 @ 09:16:27 End 2025.07.23 @ 20:09:08 Sessions 3 Manual Loads 0 Difficulty Rogue Special Mode None Game No. 54 Rogue 54 Adventurer 0 Explorer 0 Win Type - Total 0 Types 0/0/0/0/0/0/0/0/0/0 Lore% 28 Gallery% 26 Achievement% 27 Wizard Run 0 Options --------- Layout 1 ASCII 0 Keyboard 1 Movement Numpad Keybinds 0 Fullscreen 1 Font 24/Smallcaps Map View 50x40 Zoom Use 0% Tactical HUD 0 Map Filters NONE Filters NONE Steam 1 RUN: 52d8babc-09cc-4c39-a982-0e3a39d4d82c